{"text_format":"1","workbook":"xlsx","n_sheets":7,"sheets":["Accueil","EVRC Bureaux","EVRC Extérieurs","EVRC Atelier 1 ","EVRC Atelier 2","EVRC Stockage","Macro"],"not_rendered":{"charts":0,"images":0,"macros":0,"external_links":0,"defined_names":1,"comments":6,"pivot_tables":0},"unopened":[],"bounds":{"document_bytes":16777216,"sheet_cells":100000,"rows_first":2000,"rows_last":500,"rows_between":2000,"halvings":0,"cell_chars":16384,"cell_head_chars":4096},"cells_cut":0,"cells_raw":0,"read":"whole","date_system":"1900"}

{"sheet":"Accueil","index":0,"n_rows":39,"n_cols":8,"rows_kept":39,"cut":false,"hidden":false,"merged":[[24,1,24,4],[22,1,22,4],[41,1,41,4],[25,1,25,4],[37,1,37,4],[31,1,31,4],[34,1,34,4],[28,1,28,4],[29,1,30,1],[26,1,27,1],[32,1,33,1],[35,1,36,1],[38,1,39,1],[38,2,39,3],[26,2,27,3],[29,2,30,3],[32,2,33,3],[35,2,36,3],[1,1,1,7],[2,1,2,7],[13,2,13,4],[13,5,13,7],[15,1,15,7],[4,1,4,7],[5,1,5,7],[6,1,6,7],[7,1,7,7],[8,1,8,7],[9,1,9,7],[10,1,10,7],[11,1,11,7],[12,1,12,7]]}
[]
[null,"ÉVALUATION et PRÉVENTION DU RISQUE DE CONTAGION DU CORONAVIRUS COVID-19"]
[null,"AVERTISSEMENT : Cette application Excel est mise à la disposition des entreprises pour les guider dans l'évaluation du risque de contagion au coronavirus COVID-19 et pour détermener sommairement les mesures de protection à prendre. Son utilisation n'est pas une obligation, cette application n'a aucune valeur juridique. Le document sera annexé au dossier d'évaluation des risques professionnels."]
[null,null,null,null,null,"MODE D'EMPLOI"]
[null,"Renseigner les colonnes, les unes après les autres, avec 1 ou 0 suivant la correspondance aux conditions de travail."]
[null,"\"Le travail en présence du public\" correspond à des situations ou le/la salarié) dans le cadre de son activité, est obligé€de partager un même espace avec le public, c'est-à-dire des personnes potentiellement porteuses. Dans ces situations la distance de sécurité fixée à 1 mètre n'est pas toujours respectées. Exemple : le personnel affecté au réapprovisionnement des rayons dans les commerces."]
[null,"\"Le travail à 1 mètre et plus\" correspond à des situations ou le/la salarié) dans le cadre de son activité est positionné à 1 mètre de toute personne, qu'il s'agisse de membres du personnel ou du public. Lorsque la condition de 1 mètre existe saisir 1, à l'inverse, lorsque que la distance de sécurité n'est pas respectée saisir 0. Dans ce cas l'application préconise la mise en place de mesures de protection (Ecran facial, écran physique en plexiglas)"]
[null,"\"Le travail sans contact physique\" correspond à des situations ou le/la salarié(e), dans le cadre de son activité, n'a pas nécessité d'être en contact physique avec des personnes, qu'il s'agisse de membres du personnel ou du public. Lorsque l'absence de contact physique existe saisir 1, à l'inverse, lorsque que le contact physique est inévitable saisir 0. Dans ce cas l'application préconise la mise à disposition de protection protections individuelles portées par le salarié (Combinaison, gant, masque, lunette, etc.)"]
[null,"L'évaluation du risque de contagion se fait poste par poste, dans toutes les situations de travail que rencontre le salarié. Ne pas oublier les situations de travail qui concernent tous les travailleurs, indépendamment de leurs fonctions (Transport du personnel, lieux de vie et de restauration, réunions, etc.)"]
[null,"Cette application n'a pas pour ambition de répondre à toutes les situations de travail des entreprises et surtout, ne préconise pas de solutions en ce qui concerne la réorganisation du travail, consécutive et inhérente aux résultats de l'évalutation des risques de contagion. Il va de soi que des mesures dépassant largement le cadre de la protection individuelle préconisée par cette application doivent etre réalisées pour garantir au mieux , la séparation du public et des travailleurs ainsi que la salubrité des locaux de travail en toutes circonstances."]
[null,"Quelles que soient les postes de travail et les situations de travail, tous les salarié(es) de l'entreprise sont soumis au respect et à la pratique des mesures barrière qui sont principalement, le salut entre travailleurs sans contact physique, le lavage régulier des mains au savon et le fait de tousser ou d'éternuer dans son coude."]
[null,"Le document, une fois rempli constituera la mise à jour de votre dossier d'évaluation des risques. Au titre de l'article Lp. 269-3 du code du travail la mise à jour est une obligation passible d'une amende de 180 000 francs si elle n'est pas réalisée. Il n'est pas nécessaire de la transmettre à l'inspection du travail. "]
[null,"Ne rien écrire dans les cellules grisées"]
[null,null,"OUI=1   NON=0",null,null,"Mesures de protection"]
[null,"Poste de travail","Travail en présence du  public","Travail à 1 mètre et plus","Travail sans contact physique","Relative à la présence du public","Relative à la distance","Relative au contact phyisque"]
[null,"Poste ou phase de travail 1"]
[null,"Situation de travail 1"]
[null,"Situation de travail 2"]
[null,"Situation de travail 3"]
[null,"Situation de travail 4"]
[]
[]
[null,"Nom de l'entreprise"]
[]
[null,"UNITES DE TRAVAIL"]
[]
[null,null,"BUREAUX"]
[]
[]
[null,null,"EXTERIEURS"]
[]
[]
[null,null,"ATELIER 1"]
[]
[]
[null,null,"ATELIER 2"]
[]
[]
[null,null,"STOCKAGE"]

{"sheet":"EVRC Bureaux","index":1,"n_rows":36,"n_cols":8,"rows_kept":36,"cut":false,"hidden":false,"merged":[[3,2,3,7],[2,2,2,4],[1,1,1,4],[1,5,1,7],[21,1,21,7],[26,1,26,7],[31,5,31,7],[4,2,4,4],[4,5,4,7],[6,1,6,7],[11,1,11,7],[16,1,16,7]]}
[]
[null,"Evaluation du risque de contagion ",null,null,null,{"$f":"Accueil!C27","v":"BUREAUX"}]
[null,"Date : ","Réalisé par :"]
[null,null,"Ne rien écrire dans les cellules grisées"]
[null,null,"OUI=1   NON=0",null,null,"Mesures de protection"]
[null,"Poste de travail","Travail en présence du  public","Travail à 1 mètre et plus","Travail sans contact physique","Relative à la présence du public","Relative à la distance","Relative au contact phyisque"]
[null,"Poste ou phase de travail 1"]
[null,"Situation de travail 1",0,1,1,{"$f":"IF(C8=1, \"Masque à usage non sanitaire\",0)","v":0},{"$f":"IF(D8=1,0,\"Ecran facial, hygiaphone, plexiglass\")","v":0},{"$f":"IF(E8=1,0,\"Masque à usage sanitaire, lunettes, combinaison, gants\")","v":0}]
[null,"Situation de travail 2",0,1,1,0,0,0]
[null,"Situation de travail 3",0,1,1,0,0,0]
[null,"Situation de travail 4",0,1,1,0,0,0]
[null,"Poste ou phase de travail 2"]
[null,"Situation de travail 1",0,1,1,{"$f":"IF(C13=1, \"Masque à usage non sanitaire\",0)","v":0},{"$f":"IF(D13=1,0,\"Ecran facial, hygiaphone, plexiglass\")","v":0},{"$f":"IF(E13=1,0,\"Masque à usage sanitaire, lunettes, combinaison, gants\")","v":0}]
[null,"Situation de travail 2",0,1,1,0,0,0]
[null,"Situation de travail 3",0,1,1,0,0,0]
[null,"Situation de travail 4",0,1,1,0,0,0]
[null,"Poste ou phase de travail 3"]
[null,"Situation de travail 1",0,1,1,{"$f":"IF(C18=1, \"Masque à usage non sanitaire\",0)","v":0},{"$f":"IF(D18=1,0,\"Ecran facial, hygiaphone, plexiglass\")","v":0},{"$f":"IF(E18=1,0,\"Masque à usage sanitaire, lunettes, combinaison, gants\")","v":0}]
[null,"Situation de travail 2",0,1,1,0,0,0]
[null,"Situation de travail 3",0,1,1,0,0,0]
[null,"Situation de travail 4",0,1,1,0,0,0]
[null,"Poste ou phase de travail 4"]
[null,"Situation de travail 1",0,1,1,{"$f":"IF(C23=1, \"Masque à usage non sanitaire\",0)","v":0},{"$f":"IF(D23=1,0,\"Ecran facial, hygiaphone, plexiglass\")","v":0},{"$f":"IF(E23=1,0,\"Masque à usage sanitaire, lunettes, combinaison, gants\")","v":0}]
[null,"Situation de travail 2",0,1,1,0,0,0]
[null,"Situation de travail 3",0,1,1,0,0,0]
[null,"Situation de travail 4",0,1,1,0,0,0]
[null,"Poste ou phase de travail 5"]
[null,"Situation de travail 1",0,1,1,{"$f":"IF(C28=1, \"Masque à usage non sanitaire\",0)","v":0},{"$f":"IF(D28=1,0,\"Ecran facial, hygiaphone, plexiglass\")","v":0},{"$f":"IF(E28=1,0,\"Masque à usage sanitaire, lunettes, combinaison, gants\")","v":0}]
[null,"Situation de travail 2",0,1,1,0,0,0]
[null,"Situation de travail 3",0,1,1,0,0,0]
[null,"Situation de travail 4",0,1,1,0,0,0]
[null,"Poste ou phase de travail 6",0,1,1]
[null,"Situation de travail 1",0,1,1,{"$f":"IF(C33=1, \"Masque à usage non sanitaire\",0)","v":0},{"$f":"IF(D33=1,0,\"Ecran facial, hygiaphone, plexiglass\")","v":0},{"$f":"IF(E33=1,0,\"Masque à usage sanitaire, lunettes, combinaison, gants\")","v":0}]
[null,"Situation de travail 2",0,1,1,0,0,0]
[null,"Situation de travail 3",0,1,1,0,0,0]
[null,"Situation de travail 4",0,1,1,0,0,0]

{"sheet":"EVRC Extérieurs","index":2,"n_rows":36,"n_cols":8,"rows_kept":36,"cut":false,"hidden":false,"merged":[[11,1,11,7],[16,1,16,7],[21,1,21,7],[26,1,26,7],[31,5,31,7],[6,1,6,7],[1,1,1,4],[1,5,1,7],[2,2,2,4],[3,2,3,7],[4,2,4,4],[4,5,4,7]]}
[]
[null,"Evaluation du risque de contagion ",null,null,null,{"$f":"Accueil!C30","v":"EXTERIEURS"}]
[null,"Date : ","Réalisé par :"]
[null,null,"Ne rien écrire dans les cellules grisées"]
[null,null,"OUI=1   NON=0",null,null,"Mesures de protection"]
[null,"Poste de travail","Travail en présence du  public","Travail à 1 mètre et plus","Travail sans contact physique","Relative à la présence du public","Relative à la distance","Relative au contact phyisque"]
[null,"Poste ou phase de travail 1"]
[null,"Situation de travail 1",0,1,1,{"$f":"IF(C8=1, \"Masque à usage non sanitaire\",0)","v":0},{"$f":"IF(D8=1,0,\"Ecran facial, hygiaphone, plexiglass\")","v":0},{"$f":"IF(E8=1,0,\"Masque à usage sanitaire, lunettes, combinaison, gants\")","v":0}]
[null,"Situation de travail 2",0,1,1,0,0,0]
[null,"Situation de travail 3",0,1,1,0,0,0]
[null,"Situation de travail 4",0,1,1,0,0,0]
[null,"Poste ou phase de travail 2"]
[null,"Situation de travail 1",0,1,1,{"$f":"IF(C13=1, \"Masque à usage non sanitaire\",0)","v":0},{"$f":"IF(D13=1,0,\"Ecran facial, hygiaphone, plexiglass\")","v":0},{"$f":"IF(E13=1,0,\"Masque à usage sanitaire, lunettes, combinaison, gants\")","v":0}]
[null,"Situation de travail 2",0,1,1,0,0,0]
[null,"Situation de travail 3",0,1,1,0,0,0]
[null,"Situation de travail 4",0,1,1,0,0,0]
[null,"Poste ou phase de travail 3"]
[null,"Situation de travail 1",0,1,1,{"$f":"IF(C18=1, \"Masque à usage non sanitaire\",0)","v":0},{"$f":"IF(D18=1,0,\"Ecran facial, hygiaphone, plexiglass\")","v":0},{"$f":"IF(E18=1,0,\"Masque à usage sanitaire, lunettes, combinaison, gants\")","v":0}]
[null,"Situation de travail 2",0,1,1,0,0,0]
[null,"Situation de travail 3",0,1,1,0,0,0]
[null,"Situation de travail 4",0,1,1,0,0,0]
[null,"Poste ou phase de travail 4"]
[null,"Situation de travail 1",0,1,1,{"$f":"IF(C23=1, \"Masque à usage non sanitaire\",0)","v":0},{"$f":"IF(D23=1,0,\"Ecran facial, hygiaphone, plexiglass\")","v":0},{"$f":"IF(E23=1,0,\"Masque à usage sanitaire, lunettes, combinaison, gants\")","v":0}]
[null,"Situation de travail 2",0,1,1,0,0,0]
[null,"Situation de travail 3",0,1,1,0,0,0]
[null,"Situation de travail 4",0,1,1,0,0,0]
[null,"Poste ou phase de travail 5"]
[null,"Situation de travail 1",0,1,1,{"$f":"IF(C28=1, \"Masque à usage non sanitaire\",0)","v":0},{"$f":"IF(D28=1,0,\"Ecran facial, hygiaphone, plexiglass\")","v":0},{"$f":"IF(E28=1,0,\"Masque à usage sanitaire, lunettes, combinaison, gants\")","v":0}]
[null,"Situation de travail 2",0,1,1,0,0,0]
[null,"Situation de travail 3",0,1,1,0,0,0]
[null,"Situation de travail 4",0,1,1,0,0,0]
[null,"Poste ou phase de travail 6",0,1,1]
[null,"Situation de travail 1",0,1,1,{"$f":"IF(C33=1, \"Masque à usage non sanitaire\",0)","v":0},{"$f":"IF(D33=1,0,\"Ecran facial, hygiaphone, plexiglass\")","v":0},{"$f":"IF(E33=1,0,\"Masque à usage sanitaire, lunettes, combinaison, gants\")","v":0}]
[null,"Situation de travail 2",0,1,1,0,0,0]
[null,"Situation de travail 3",0,1,1,0,0,0]
[null,"Situation de travail 4",0,1,1,0,0,0]

{"sheet":"EVRC Atelier 1 ","index":3,"n_rows":36,"n_cols":8,"rows_kept":36,"cut":false,"hidden":false,"merged":[[2,2,2,4],[3,2,3,7],[4,2,4,4],[4,5,4,7],[1,1,1,4],[1,5,1,7],[31,5,31,7],[6,1,6,7],[11,1,11,7],[16,1,16,7],[21,1,21,7],[26,1,26,7]]}
[]
[null,"Evaluation du risque de contagion ",null,null,null,{"$f":"Accueil!C33","v":"ATELIER 1"}]
[null,"Date : ","Réalisé par :"]
[null,null,"Ne rien écrire dans les cellules grisées"]
[null,null,"OUI=1   NON=0",null,null,"Mesures de protection"]
[null,"Poste de travail","Travail en présence du  public","Travail à 1 mètre et plus","Travail sans contact physique","Relative à la présence du public","Relative à la distance","Relative au contact phyisque"]
[null,"Poste ou phase de travail 1"]
[null,"Situation de travail 1",0,1,1,{"$f":"IF(C8=1, \"Masque à usage non sanitaire\",0)","v":0},{"$f":"IF(D8=1,0,\"Ecran facial, hygiaphone, plexiglass\")","v":0},{"$f":"IF(E8=1,0,\"Masque à usage sanitaire, lunettes, combinaison, gants\")","v":0}]
[null,"Situation de travail 2",0,1,1,0,0,0]
[null,"Situation de travail 3",0,1,1,0,0,0]
[null,"Situation de travail 4",0,1,1,0,0,0]
[null,"Poste ou phase de travail 2"]
[null,"Situation de travail 1",0,1,1,{"$f":"IF(C13=1, \"Masque à usage non sanitaire\",0)","v":0},{"$f":"IF(D13=1,0,\"Ecran facial, hygiaphone, plexiglass\")","v":0},{"$f":"IF(E13=1,0,\"Masque à usage sanitaire, lunettes, combinaison, gants\")","v":0}]
[null,"Situation de travail 2",0,1,1,0,0,0]
[null,"Situation de travail 3",0,1,1,0,0,0]
[null,"Situation de travail 4",0,1,1,0,0,0]
[null,"Poste ou phase de travail 3"]
[null,"Situation de travail 1",0,1,1,{"$f":"IF(C18=1, \"Masque à usage non sanitaire\",0)","v":0},{"$f":"IF(D18=1,0,\"Ecran facial, hygiaphone, plexiglass\")","v":0},{"$f":"IF(E18=1,0,\"Masque à usage sanitaire, lunettes, combinaison, gants\")","v":0}]
[null,"Situation de travail 2",0,1,1,0,0,0]
[null,"Situation de travail 3",0,1,1,0,0,0]
[null,"Situation de travail 4",0,1,1,0,0,0]
[null,"Poste ou phase de travail 4"]
[null,"Situation de travail 1",0,1,1,{"$f":"IF(C23=1, \"Masque à usage non sanitaire\",0)","v":0},{"$f":"IF(D23=1,0,\"Ecran facial, hygiaphone, plexiglass\")","v":0},{"$f":"IF(E23=1,0,\"Masque à usage sanitaire, lunettes, combinaison, gants\")","v":0}]
[null,"Situation de travail 2",0,1,1,0,0,0]
[null,"Situation de travail 3",0,1,1,0,0,0]
[null,"Situation de travail 4",0,1,1,0,0,0]
[null,"Poste ou phase de travail 5"]
[null,"Situation de travail 1",0,1,1,{"$f":"IF(C28=1, \"Masque à usage non sanitaire\",0)","v":0},{"$f":"IF(D28=1,0,\"Ecran facial, hygiaphone, plexiglass\")","v":0},{"$f":"IF(E28=1,0,\"Masque à usage sanitaire, lunettes, combinaison, gants\")","v":0}]
[null,"Situation de travail 2",0,1,1,0,0,0]
[null,"Situation de travail 3",0,1,1,0,0,0]
[null,"Situation de travail 4",0,1,1,0,0,0]
[null,"Poste ou phase de travail 6",0,1,1]
[null,"Situation de travail 1",0,1,1,{"$f":"IF(C33=1, \"Masque à usage non sanitaire\",0)","v":0},{"$f":"IF(D33=1,0,\"Ecran facial, hygiaphone, plexiglass\")","v":0},{"$f":"IF(E33=1,0,\"Masque à usage sanitaire, lunettes, combinaison, gants\")","v":0}]
[null,"Situation de travail 2",0,1,1,0,0,0]
[null,"Situation de travail 3",0,1,1,0,0,0]
[null,"Situation de travail 4",0,1,1,0,0,0]

{"sheet":"EVRC Atelier 2","index":4,"n_rows":36,"n_cols":8,"rows_kept":36,"cut":false,"hidden":false,"merged":[[11,1,11,7],[16,1,16,7],[21,1,21,7],[26,1,26,7],[31,5,31,7],[6,1,6,7],[1,1,1,4],[1,5,1,7],[2,2,2,4],[3,2,3,7],[4,2,4,4],[4,5,4,7]]}
[]
[null,"Evaluation du risque de contagion ",null,null,null,{"$f":"Accueil!C36","v":"ATELIER 2"}]
[null,"Date : ","Réalisé par :"]
[null,null,"Ne rien écrire dans les cellules grisées"]
[null,null,"OUI=1   NON=0",null,null,"Mesures de protection"]
[null,"Poste de travail","Travail en présence du  public","Travail à 1 mètre et plus","Travail sans contact physique","Relative à la présence du public","Relative à la distance","Relative au contact phyisque"]
[null,"Poste ou phase de travail 1"]
[null,"Situation de travail 1",0,1,1,{"$f":"IF(C8=1, \"Masque à usage non sanitaire\",0)","v":0},{"$f":"IF(D8=1,0,\"Ecran facial, hygiaphone, plexiglass\")","v":0},{"$f":"IF(E8=1,0,\"Masque à usage sanitaire, lunettes, combinaison, gants\")","v":0}]
[null,"Situation de travail 2",0,1,1,0,0,0]
[null,"Situation de travail 3",0,1,1,0,0,0]
[null,"Situation de travail 4",0,1,1,0,0,0]
[null,"Poste ou phase de travail 2"]
[null,"Situation de travail 1",0,1,1,{"$f":"IF(C13=1, \"Masque à usage non sanitaire\",0)","v":0},{"$f":"IF(D13=1,0,\"Ecran facial, hygiaphone, plexiglass\")","v":0},{"$f":"IF(E13=1,0,\"Masque à usage sanitaire, lunettes, combinaison, gants\")","v":0}]
[null,"Situation de travail 2",0,1,1,0,0,0]
[null,"Situation de travail 3",0,1,1,0,0,0]
[null,"Situation de travail 4",0,1,1,0,0,0]
[null,"Poste ou phase de travail 3"]
[null,"Situation de travail 1",0,1,1,{"$f":"IF(C18=1, \"Masque à usage non sanitaire\",0)","v":0},{"$f":"IF(D18=1,0,\"Ecran facial, hygiaphone, plexiglass\")","v":0},{"$f":"IF(E18=1,0,\"Masque à usage sanitaire, lunettes, combinaison, gants\")","v":0}]
[null,"Situation de travail 2",0,1,1,0,0,0]
[null,"Situation de travail 3",0,1,1,0,0,0]
[null,"Situation de travail 4",0,1,1,0,0,0]
[null,"Poste ou phase de travail 4"]
[null,"Situation de travail 1",0,1,1,{"$f":"IF(C23=1, \"Masque à usage non sanitaire\",0)","v":0},{"$f":"IF(D23=1,0,\"Ecran facial, hygiaphone, plexiglass\")","v":0},{"$f":"IF(E23=1,0,\"Masque à usage sanitaire, lunettes, combinaison, gants\")","v":0}]
[null,"Situation de travail 2",0,1,1,0,0,0]
[null,"Situation de travail 3",0,1,1,0,0,0]
[null,"Situation de travail 4",0,1,1,0,0,0]
[null,"Poste ou phase de travail 5"]
[null,"Situation de travail 1",0,1,1,{"$f":"IF(C28=1, \"Masque à usage non sanitaire\",0)","v":0},{"$f":"IF(D28=1,0,\"Ecran facial, hygiaphone, plexiglass\")","v":0},{"$f":"IF(E28=1,0,\"Masque à usage sanitaire, lunettes, combinaison, gants\")","v":0}]
[null,"Situation de travail 2",0,1,1,0,0,0]
[null,"Situation de travail 3",0,1,1,0,0,0]
[null,"Situation de travail 4",0,1,1,0,0,0]
[null,"Poste ou phase de travail 6",0,1,1]
[null,"Situation de travail 1",0,1,1,{"$f":"IF(C33=1, \"Masque à usage non sanitaire\",0)","v":0},{"$f":"IF(D33=1,0,\"Ecran facial, hygiaphone, plexiglass\")","v":0},{"$f":"IF(E33=1,0,\"Masque à usage sanitaire, lunettes, combinaison, gants\")","v":0}]
[null,"Situation de travail 2",0,1,1,0,0,0]
[null,"Situation de travail 3",0,1,1,0,0,0]
[null,"Situation de travail 4",0,1,1,0,0,0]

{"sheet":"EVRC Stockage","index":5,"n_rows":36,"n_cols":8,"rows_kept":36,"cut":false,"hidden":false,"merged":[[11,1,11,7],[16,1,16,7],[21,1,21,7],[26,1,26,7],[31,5,31,7],[6,1,6,7],[1,1,1,4],[1,5,1,7],[2,2,2,4],[3,2,3,7],[4,2,4,4],[4,5,4,7]]}
[]
[null,"Evaluation du risque de contagion ",null,null,null,{"$f":"Accueil!C39","v":"STOCKAGE"}]
[null,"Date : ","Réalisé par :"]
[null,null,"Ne rien écrire dans les cellules grisées"]
[null,null,"OUI=1   NON=0",null,null,"Mesures de protection"]
[null,"Poste de travail","Travail en présence du  public","Travail à 1 mètre et plus","Travail sans contact physique","Relative à la présence du public","Relative à la distance","Relative au contact phyisque"]
[null,"Poste ou phase de travail 1"]
[null,"Situation de travail 1",1,1,1,{"$f":"IF(C8=1, \"Masque à usage non sanitaire\",0)","v":"Masque à usage non sanitaire"},{"$f":"IF(D8=1,0,\"Ecran facial, hygiaphone, plexiglass\")","v":0},{"$f":"IF(E8=1,0,\"Masque à usage sanitaire, lunettes, combinaison, gants\")","v":0}]
[null,"Situation de travail 2",0,1,1,0,0,0]
[null,"Situation de travail 3",0,1,1,0,0,0]
[null,"Situation de travail 4",0,1,1,0,0,0]
[null,"Poste ou phase de travail 2"]
[null,"Situation de travail 1",0,1,1,{"$f":"IF(C13=1, \"Masque à usage non sanitaire\",0)","v":0},{"$f":"IF(D13=1,0,\"Ecran facial, hygiaphone, plexiglass\")","v":0},{"$f":"IF(E13=1,0,\"Masque à usage sanitaire, lunettes, combinaison, gants\")","v":0}]
[null,"Situation de travail 2",0,1,1,0,0,0]
[null,"Situation de travail 3",0,1,1,0,0,0]
[null,"Situation de travail 4",0,1,1,0,0,0]
[null,"Poste ou phase de travail 3"]
[null,"Situation de travail 1",0,1,1,{"$f":"IF(C18=1, \"Masque à usage non sanitaire\",0)","v":0},{"$f":"IF(D18=1,0,\"Ecran facial, hygiaphone, plexiglass\")","v":0},{"$f":"IF(E18=1,0,\"Masque à usage sanitaire, lunettes, combinaison, gants\")","v":0}]
[null,"Situation de travail 2",0,1,1,0,0,0]
[null,"Situation de travail 3",0,1,1,0,0,0]
[null,"Situation de travail 4",0,1,1,0,0,0]
[null,"Poste ou phase de travail 4"]
[null,"Situation de travail 1",0,1,1,{"$f":"IF(C23=1, \"Masque à usage non sanitaire\",0)","v":0},{"$f":"IF(D23=1,0,\"Ecran facial, hygiaphone, plexiglass\")","v":0},{"$f":"IF(E23=1,0,\"Masque à usage sanitaire, lunettes, combinaison, gants\")","v":0}]
[null,"Situation de travail 2",0,1,1,0,0,0]
[null,"Situation de travail 3",0,1,1,0,0,0]
[null,"Situation de travail 4",0,1,1,0,0,0]
[null,"Poste ou phase de travail 5"]
[null,"Situation de travail 1",0,1,1,{"$f":"IF(C28=1, \"Masque à usage non sanitaire\",0)","v":0},{"$f":"IF(D28=1,0,\"Ecran facial, hygiaphone, plexiglass\")","v":0},{"$f":"IF(E28=1,0,\"Masque à usage sanitaire, lunettes, combinaison, gants\")","v":0}]
[null,"Situation de travail 2",0,1,1,0,0,0]
[null,"Situation de travail 3",0,1,1,0,0,0]
[null,"Situation de travail 4",0,1,1,0,0,0]
[null,"Poste ou phase de travail 6",0,1,1]
[null,"Situation de travail 1",0,1,1,{"$f":"IF(C33=1, \"Masque à usage non sanitaire\",0)","v":0},{"$f":"IF(D33=1,0,\"Ecran facial, hygiaphone, plexiglass\")","v":0},{"$f":"IF(E33=1,0,\"Masque à usage sanitaire, lunettes, combinaison, gants\")","v":0}]
[null,"Situation de travail 2",0,1,1,0,0,0]
[null,"Situation de travail 3",0,1,1,0,0,0]
[null,"Situation de travail 4",0,1,1,0,0,0]

{"sheet":"Macro","index":6,"n_rows":20,"n_cols":3,"rows_kept":20,"cut":false,"hidden":false,"merged":[]}
[]
[null,"Atteindre feuille bureau","Retour page de garde"]
[null,{"$f":"FORMULA.GOTO('EVRC Bureaux'!A1)","v":true},{"$f":"FORMULA.GOTO(Accueil!$A$21)","v":true}]
[null,{"$f":" RETURN()","v":true},{"$f":" RETURN()","v":true}]
[]
[null,"Atteindre feuille Atelier 1","Retour page de garde mode d'emploi"]
[null,{"$f":"FORMULA.GOTO('EVRC Atelier 1 '!A1)","v":true},{"$f":"FORMULA.GOTO(Accueil!$A$1)","v":true}]
[null,{"$f":" RETURN()","v":true},{"$f":" RETURN()","v":true}]
[]
[null,"Atteindre feuille Atelier 2","Accedez aux unités"]
[null,{"$f":"FORMULA.GOTO('EVRC Atelier 2'!A1)","v":true},{"$f":"FORMULA.GOTO(Accueil!$A$51)","v":true}]
[null,{"$f":" RETURN()","v":true},{"$f":" RETURN()","v":true}]
[]
[null,"Atteindre feuille Stockage"]
[null,{"$f":"FORMULA.GOTO('EVRC Stockage'!A1)","v":true}]
[null,{"$f":" RETURN()","v":true}]
[]
[null,"Atteindre feuille extérieurs"]
[null,{"$f":"FORMULA.GOTO('EVRC Extérieurs'!A1)","v":true}]
[null,{"$f":" RETURN()","v":true}]